Cogmind - Beta 12 @@@ ROGUE MODE // 2023.06.09 @ 03:52:31 Player: HexanyIves Result: Destroyed by G-47 Trooper with Particle Gun Performance ------------- Evolutions (2) 1000 Regions Visited (4) 800 Robots Destroyed (17) 85 Value Destroyed (427) 427 Prototype IDs (1) 20 Alien Tech Used (0) 0 Bonus (0) 0 TOTAL SCORE: 2332 Bonus ------- None Cogmind --------- Core Integrity 0/550 Matter 164/300 Energy 98/100 System Corruption 9% Temperature Cool (9) Movement Core (50) Location -8/Materials Parts ------- > --- POWER (1) -------- (None) > --- PROPULSION (3) --- (None) > --- UTILITY (4) ------ (None) > --- WEAPON (3) ------- (None) > --- INVENTORY (5) ---- Ion Engine Light Ion Engine Nuclear Core Airjet Rocket Launcher Peak State ------------ > --- POWER ------------ Light Nuclear Core > --- PROPULSION ------- Airjet Airjet Combat Airjet > --- UTILITY ---------- Small Storage Unit Trap Scanner Seismic Detector Sensor Drone Bay > --- WEAPON ----------- Particle Gun Assault Rifle Mini Grenade Launcher > --- INVENTORY -------- Ion Engine Light Ion Engine Wheel Airjet Airjet Shock Rifle Rocket Launcher [Rating: 33] Favorites ----------- Power Ion Engine Engine Ion Engine Power Core Light Nuclear Core Propulsion Improved Hover Unit Wheel Wheel Hover Unit Improved Hover Unit Utility Small Storage Unit Device Seismic Detector Storage Small Storage Unit Weapon Assault Rifle Energy Gun Beam Rifle Ballistic Gun Assault Rifle Launcher Grenade Launcher Build | -11 -10 -10 -9 -8 ------- Run | Jun Mat Min Mat Mat Slots Evolved 4 | . . . 2 2 Power . | . . . . . Propulsion 1 | . . . . 1 Utility 2 | . . . 1 1 Weapon 1 | . . . 1 . Parts Attached 29 | 7 . 6 5 11 Power 2 | 1 . . . 1 Engine 1 | 1 . . . . Core 1 | . . . . 1 Reactor . | . . . . . Propulsion 10 | 2 . 2 1 5 Treads . | . . . . . Leg . | . . . . . Wheel 4 | 2 . 1 . 1 Hover 6 | . . 1 1 4 Flight . | . . . . . Utility 6 | 2 . . 2 2 Device 5 | 1 . . 2 2 Storage 1 | 1 . . . . Processor . | . . . . . Hackware . | . . . . . Protection . | . . . . . Artifact . | . . . . . Weapon 11 | 2 . 4 2 3 Energy Gun 5 | 1 . 2 1 1 Energy Cannon . | . . . . . Ballistic Gun 2 | 1 . . 1 . Ballistic Cannon . | . . . . . Launcher 4 | . . 2 . 2 Special Weapon . | . . . . . Impact Weapon . | . . . . . Slashing Weapon . | . . . . . Piercing Weapon . | . . . . . Special Melee Weapon . | . . . . . Unidentified Prototypes 1 | . . . 1 . Parts Lost 22 | . . 2 . 20 Power 2 | . . . . 2 Propulsion 9 | . . 2 . 7 Utility 5 | . . . . 5 Weapon 6 | . . . . 6 Highest Loss Streak 12 | . . 1 . 12 To Critical Strikes . | . . . . . Average Slot Usage (%) 96 | . 100 96 100 93 Engine 10 | . 14 14 11 6 Wheel 6 | . 28 13 . . Hover 18 | . . 11 21 24 Device 20 | . 14 14 22 25 Storage 11 | . 14 14 11 8 Energy Gun 16 | . 14 16 22 14 Ballistic Gun 8 | . 14 2 9 8 Launcher 3 | . . 8 2 1 Naked Turns 5 | . . . . 5 Heaviest Build 35 | 15 15 17 34 35 Greatest Support 28 | 20 20 20 19 28 Greatest Overweight (x) 3 | . . 1 3 2 Average Overweight (x) . | . . . 1 . Largest Inventory Capacity 8 | 8 8 8 8 8 Average Capacity 7 | 7 8 8 8 7 Most Carried 8 | 7 8 8 8 8 Average Carried 7 | 4 7 7 7 6 Final Capacity 8 | 8 8 8 8 5 Final Carried 8 | 6 8 8 8 5 Class Distribution -------------------- 48% | Skirmisher 40% | Mutant 5% | Scavenger-Skirmisher 4% | Gunner Dominant Class ---------------- Mutant | -10/Materials Mutant | -10/Mines Skirmisher | -9/Materials Skirmisher | -8/Materials Resources | -11 -10 -10 -9 -8 ----------- Run | Jun Mat Min Mat Mat Matter Collected 572 | 284 1 163 . 124 Remotely . | . . . . . Salvage Created 453 | 48 . 85 . 320 Parts 24 | 5 . 3 . 16 Haulers Intercepted . | . . . . . Recyclers Shooed . | . . . . . Parts Field Recycled . | . . . . . Retrieved Matter . | . . . . . Parts Self-Destructed . | . . . . . Prevented . | . . . . . Kills | -11 -10 -10 -9 -8 ------- Run | Jun Mat Min Mat Mat Combat Hostiles Destroyed 24 | . . 13 . 11 Guns 10 | . . 3 . 7 AOE 14 | . . 10 . 4 Classes Destroyed 6 | 1 . 2 . 3 Tunneler 3 | 3 . . . . Swarmer 7 | . . 3 . 4 Grunt 5 | . . . . 5 Brawler 1 | . . . . 1 Sentry 1 | . . . . 1 Assembled 10 | . . 10 . . Best Kill Streak 7 | 3 . 4 . 7 Combat Bots Only 7 | . . 4 . 7 Max Kills in Single Turn 3 | 1 . 3 . 2 Gunslinging . | . . . . . Exploded 3 | . . 3 . 2 Melee . | . . . . . Uniques/NPCs Destroyed . | . . . . . Combat | -11 -10 -10 -9 -8 -------- Run | Jun Mat Min Mat Mat Damage Taken 2368 | . . 526 . 1842 Core 671 | . . 114 . 557 Absorbed by Shields . | . . . . . Core Remaining (%) 84 | 100 . 54 100 . Volleys Fired 61 | 5 . 24 . 32 Largest 3 | 2 . 2 . 3 Hottest 141 | 60 . 121 . 141 Shots Fired 121 | 10 . 41 . 70 Gun 101 | 10 . 32 . 59 Cannon . | . . . . . Launcher 20 | . . 9 . 11 Special . | . . . . . Kinetic 43 | 5 . 6 . 32 Thermal 50 | . . 23 . 27 Explosive 20 | . . 9 . 11 Electromagnetic 8 | 5 . 3 . . Robot Hit Streak 9 | 2 . 6 . 9 Robot Miss Streak 7 | 3 . 7 . 3 Penetration Max . | . . . . . Secondary Targets . | . . . . . Shots Hit Robots 77 | 5 . 26 . 46 Core Hits 70 | 3 . 28 . 39 Critical Kills . | . . . . . Critical Parts Destroyed . | . . . . . Critical Strikes 3 | . . . . 3 Burn 3 | . . . . 3 Melee Attacks . | . . . . . Impact . | . . . . . Slashing . | . . . . . Piercing . | . . . . . Sneak Attacks . | . . . . . Combat Hostiles . | . . . . . Follow-up Attacks . | . . . . . Damage Inflicted 1805 | 66 . 675 . 1064 Guns 884 | 66 . 227 . 591 Cannons . | . . . . . Explosions 899 | . . 448 . 451 Melee . | . . . . . Ramming 22 | . . . . 22 Kinetic 386 | 39 . 56 . 291 Thermal 451 | . . 151 . 300 Explosive 899 | . . 448 . 451 Electromagnetic 47 | 27 . 20 . . Impact . | . . . . . Slashing . | . . . . . Piercing . | . . . . . Highest Corruption 9 | . . . . 9 Average Corruption 5 | . . . . 5 Corruption Purged . | . . . . . Corruption Blocked . | . . . . . Effects 7 | . . . . 7 Message Errors 1 | . . . . 1 Matter Fused 3 | . . . . 3 Heat Flow Errors 1 | . . . . 1 Misfires 1 | . . . . 1 Weapon Failures 1 | . . . . 1 Overload Shots . | . . . . . Overflow Damage 8 | . . 4 . 4 Projectiles . | . . . . . Explosions 8 | . . 4 . 4 Melee . | . . . . . Knockbacks . | . . . . . Impact . | . . . . . Kinetic . | . . . . . Secondary . | . . . . . Self-Inflicted Damage 123 | . . 99 . 24 Shots 6 | . . 4 . 2 Rammed 6 | . . . . 6 Targets Rammed 6 | . . . . 6 Kicked . | . . . . . Crushed . | . . . . . Highest Temperature 429 | . . 184 . 429 Average Temperature 104 | . . 58 . 133 Received Heat Transfer 594 | . . 18 . 576 Effects 1 | . . . . 1 Energy Bleed 1 | . . . . 1 Siege Activations . | . . . . . Robots Corrupted . | . . . . . Combat Hostiles . | . . . . . Parts Fried . | . . . . . Impact Corruptions . | . . . . . Robots Melted . | . . . . . Combat Hostiles . | . . . . . Parts Melted . | . . . . . Heat Transferred 1235 | . . 324 . 911 Parts Sabotaged . | . . . . . Parts Stolen . | . . . . . Parts Stripped . | . . . . . Power Chain Reactions . | . . . . . Missiles Intercepted . | . . . . . Alert | -11 -10 -10 -9 -8 ------- Run | Jun Mat Min Mat Mat Peak Influence 282 | 15 9 135 . 282 Initial 9 | . 9 3 . . Average 18 | 5 9 33 . 25 Maximum Alert Level 1 | . . . . 1 Low Security (%) 98 | 100 100 100 100 96 Level 1 1 | . . . . 3 Level 2 . | . . . . . Level 3 . | . . . . . Level 4 . | . . . . . Level 5 . | . . . . . High Security . | . . . . . Max Security . | . . . . . Squads Dispatched 6 | . . . . 6 Investigation . | . . . . . Extermination . | . . . . . Reinforcement 6 | . . . . 6 Assault . | . . . . . Garrison . | . . . . . Intercept . | . . . . . Searches Triggered . | . . . . . Construction Impeded 1 | . . . . 1 Haulers Reinforced . | . . . . . Active Scanning Responses . | . . . . . Cargo Convoy Interrupts . | . . . . . Stealth | -11 -10 -10 -9 -8 --------- Run | Jun Mat Min Mat Mat Distress Signals 1 | . . . 1 . Communications Jammed . | . . . . . Distress Signals . | . . . . . Times Spotted 34 | . . 14 1 19 Peak Tracking Total 5 | . . 4 1 5 Tactical Retreats 2 | . . 1 . 1 Traps | -11 -10 -10 -9 -8 ------- Run | Jun Mat Min Mat Mat Traps Triggered . | . . . . . Indirectly . | . . . . . Trap Hack Attempts . | . . . . . Triggered . | . . . . . Disarmed . | . . . . . Reprogrammed . | . . . . . Reused . | . . . . . Traps Extracted . | . . . . . Installed . | . . . . . Triggered . | . . . . . Machines | -11 -10 -10 -9 -8 ---------- Run | Jun Mat Min Mat Mat Machines Disabled 2 | . . . . 2 Max in Single Turn 1 | . . . . 1 Machines Repaired . | . . . . . Machines Sabotaged . | . . . . . Overloaded Fab Kills . | . . . . . Hacking | -11 -10 -10 -9 -8 --------- Run | Jun Mat Min Mat Mat Machines Accessed 2 | . 1 1 . . Terminals 1 | . 1 . . . Fabricators . | . . . . . Repair Stations . | . . . . . Recycling Units . | . . . . . Scanalyzers . | . . . . . Garrison Access . | . . . . . Total Hacks 2 | . 1 1 . . Successful 2 | . 1 1 . . Failed . | . . . . . Catastrophic . | . . . . . Database Lockouts . | . . . . . Manual 1 | . 1 . . . Terminals 1 | . 1 . . . Fabricators . | . . . . . Repair Stations . | . . . . . Recycling Units . | . . . . . Scanalyzers . | . . . . . Garrison Access . | . . . . . Terminal Hacks 2 | . 1 1 . . Record 1 | . 1 . . . Open Door 1 | . . 1 . . Fabricator Hacks . | . . . . . Repair Station Hacks . | . . . . . Recycling Unit Hacks . | . . . . . Scanalyzer . | . . . . . Garrison Access Hacks . | . . . . . Unauthorized Hacks . | . . . . . Terminals . | . . . . . Fabricators . | . . . . . Repair Stations . | . . . . . Recycling Units . | . . . . . Scanalyzers . | . . . . . Garrison Access . | . . . . . Data Cores Recovered . | . . . . . Used . | . . . . . Hacking Detections 2 | . 2 . . . Full Trace Events . | . . . . . Feedback Events . | . . . . . Feedback Blocked . | . . . . . Robot Schematics Acquired . | . . . . . Robots Built . | . . . . . Authchips . | . . . . . Time . | . . . . . Total Robot Build Rating . | . . . . . Part Schematics Acquired . | . . . . . Parts Built . | . . . . . Authchips . | . . . . . Time . | . . . . . Total Part Build Rating . | . . . . . Parts Repaired . | . . . . . Time . | . . . . . Parts Recycled . | . . . . . Recycled Matter . | . . . . . Retrieved Matter . | . . . . . Retrieved Components . | . . . . . Parts Scanalyzed . | . . . . . Part Schematics Acquired . | . . . . . Parts Damaged . | . . . . . Bothacking | -11 -10 -10 -9 -8 ------------ Run | Jun Mat Min Mat Mat Used RIF Installer . | . . . . . Robots Hacked . | . . . . . Non-combat . | . . . . . Combat . | . . . . . Robot Hacks Applied . | . . . . . Relay Couplers Released . | . . . . . Fabnet Peak Effective % . | . . . . . Robots Rewired . | . . . . . Allies Hacked . | . . . . . Hacks Repelled . | . . . . . Allies | -11 -10 -10 -9 -8 -------- Run | Jun Mat Min Mat Mat Total Allies . | . . . . . Largest Group . | . . . . . Highest-Rated Group . | . . . . . Highest-Rated Ally . | . . . . . Total Orders 5 | . . . 1 4 EXPLORE 5 | . . . 1 4 Ally Attacks . | . . . . . Total Damage . | . . . . . Kills . | . . . . . Allies Corrupted . | . . . . . Allies Melted . | . . . . . Intel | -11 -10 -10 -9 -8 ------- Run | Jun Mat Min Mat Mat Robot Analysis Total . | . . . . . Derelict Logs Recovered 1 | . . 1 . . Drone Launches 5 | . . . 1 4 Drone Recoveries 5 | . . . 1 4 Exploration | -11 -10 -10 -9 -8 ------------- Run | Jun Mat Min Mat Mat Turns Passed 2215 | 97 233 473 552 860 Spaces Moved 914 | 80 201 356 91 186 Core 15 | 6 . . . 9 Treads . | . . . . . Legs . | . . . . . Wheels 616 | 74 201 305 9 27 Hover 283 | . . 51 82 150 Flight . | . . . . . Fastest Speed 50 | 50 80 80 125 50 Average Speed 99 | 77 80 100 130 112 Slowest Speed 220 | 80 80 155 131 220 Overloaded Moves . | . . . . . Propulsion Burnouts . | . . . . . Robots Hopped . | . . . . . Cave-ins Triggered . | . . . . . Exploration Rate (%) 34 | 4 34 82 23 28 Regions Visited 4 Branch Regions 1 Pre-discovered Areas . | . . . . . Known Exits Taken . | . . . . . Unknown Exits Taken 4 | 1 1 1 1 . Scrap Searched . | . . . . . Spaces Dug 16 | . . 16 . . Terrain Destroyed 131 | . . 55 . 76 Melee . | . . . . . Projectile . | . . . . . AOE 131 | . . 55 . 76 Terrain Rammed . | . . . . . Walls Destroyed . | . . . . . Machines Disabled . | . . . . . Actions | -11 -10 -10 -9 -8 --------- Run | Jun Mat Min Mat Mat Total 2108 | 104 274 431 523 776 Wait 1056 | . 66 34 424 532 Move 910 | 79 200 355 90 186 Hop . | . . . . . Pick Up 37 | 13 5 7 3 9 Fast Attach . | . . . . . Attach 22 | 7 . 2 2 11 Detach . | . . . . . Swap 7 | . . 4 3 . Drop 9 | . 3 5 1 . Fire 61 | 5 . 24 . 32 Melee . | . . . . . Ram 6 | . . . . 6 Kick . | . . . . . Crush . | . . . . . Escape Stasis . | . . . . . Rewire . | . . . . . Trap . | . . . . . Miscellaneous . | . . . . . Route ------- -11/Junkyard -10/Materials -10/Mines -9/Materials -8/Materials History --------- Turn | Location | Event 33 | -11/Junkyard | Discovered new exit (range 14) 98 | -11/Junkyard | Entered Materials 305 | -10/Materials | Discovered new exit (range 12) 312 | -10/Materials | Build established: Mutant 331 | -10/Materials | Entered Mines 332 | -10/Mines | Assembled infested the area 337 | -10/Mines | Assisted by a Guerilla fighting off Assembled 348 | -10/Mines | Met a Derelict bent on vengeance 597 | -10/Mines | Learned 2 Materials zone layouts 644 | -10/Mines | Found the Drone Emporium 665 | -10/Mines | Found Prototype Device 760 | -10/Mines | Discovered new exit (range 16) 780 | -10/Mines | Found a hidden stash of uninstalled traps 804 | -10/Mines | Entered Materials 804 | -9/Materials | Evolved 2 slots: Utility x1, Weapon x1 805 | -9/Materials | Identified Sensor Drone Bay 849 | -9/Materials | Discovered new exit (range 42) 1212 | -9/Materials | Build established: Skirmisher 1356 | -9/Materials | Entered another Materials area 1356 | -8/Materials | Evolved 2 slots: Propulsion x1, Utility x1 2049 | -8/Materials | Lost 6 parts (1p2n1u2w) 2162 | -8/Materials | Destroyed 7 combat bots 2195 | -8/Materials | Core integrity fell below 50% 2211 | -8/Materials | Core integrity fell below 20% 2216 | -8/Materials | Destroyed by G-47 Trooper with Particle Gun Last Messages --------------- 02205_ U-05 Engineer lays Concrete. 02205_ U-05 Engineer builds a Wall. 02207_ Critical hit (Burn: +37). 02207_ Wheel destroyed. 02209_ U-05 Engineer builds a Wall. 02210_ U-05 Engineer lays Concrete. 02210_ U-05 Engineer builds a Wall. 02210_ Slammed into U-05 Engineer. 02211_ ALERT: Construction progress impeded, dispatching reinforcements to local area. 02211_ Slammed into G-47 Trooper. 02211_ Trap Scanner destroyed. 02211_ System corrupted by crushing effect (+4). 02212_ The unstable cave ceiling collapses. 02212_ Slammed into G-47 Trooper. 02213_ U-05 Engineer lays Concrete. 02213_ Slammed into U-05 Engineer. 02214_ U-05 Engineer builds a Wall. 02215_ U-05 Engineer lays Concrete. 02216_ U-05 Engineer builds a Wall. Map ----- +----------------------------------------------------+ | ????????????????????????????? | | ????????????????????????????? | | ??? ??????????????????????? | | ??? ??????????????????????? | | ??? ??????????????????????? | | ??# #?????????????????????? | | ??# #?????????????????????? | | ??# #?????????????????????? | | ?## ##????????????????????? | | ?# #??????????????????#?? | | ?# #?????????????????? ?? | | ?# T +?????????????????? ?? | | ?#* #?????????????????? ?? | | ## #???????????????? ?? | | # #????????????????""" ?? | | ########????????""" ?? | | #????????""" ?? | | = = #???????? ?? | | %* | #??#+#???#;+#?? | | " [ # ###### #####; #?? | | " =%= # ## # ##? | | # ! """ # #### #? | | ### # "R" / u= #? | | " " " # %= #? | | ###+#### """ #### #== %#? | | #?# """ ## ##%@ #? | | #?# ## ###u ##? | | #?# ! ### # ##? | | #?############* !## [##? | | ####+#????????????#*!!## ##? | | # #????????????#*! ## ### | | " # #????????????# # g### | | " # #????????????# #gu# # | | " + #????????????# # # | | # #??###+##????# ##H # | | " # ####] ####### u % # | | " " | | " # # | | ###+## ######## # | | " ## ############ #" # | | " ## T #?????# != # ### | | " ## #?????# ! """ / #?? | | ?# #?????# """ # #?? | | ###?# #?????# """ # #?? | | ????# #?????# ####?? | | ????# #?????# """ #????? | | ????#####?????# """ #????? | | ??????????????# """ #????? | | ??????????????# ? #????? | | ??????????????######?###????? | +----------------------------------------------------+ Best States ------------- Heat Dissipation 31 Energy Generation 14 Energy Capacity 250 Matter Stores 300 Matter Capacity 300 Sight Range 16 Robot Scan Range 14 Terrain Scan Density 10 Evasion (%) 53 Item Schematics ----------------- None Robot Schematics ------------------ None Fabricated ------------ Nothing Alien Tech Used ----------------- None Achievements -------------- None Challenges ------------ None Game ------ Seed EtherialAccelerationSuite Manual? 0 Play Time 00:18:13 Cumulative 30.8 hours Start 2023.06.09 @ 03:34:44 End 2023.06.09 @ 03:52:31 Sessions 1 Manual Loads 0 Difficulty Rogue Special Mode None Game No. 47 Rogue 47 Adventurer 0 Explorer 0 Win Type - Total 0 Types 0/0/0/0/0/0/0/0/0 Lore% 29 Gallery% 36 Achievement% 28 Wizard Run 0 Options --------- ASCII 0 Keyboard 0 Movement Numpad Keybinds 0 Fullscreen 1 Font 12/Smallcaps Map View 83x54 Tactical HUD 1 Map Filters NONE Filters NONE Steam 1 RUN: e1bcb9f2-a70f-43fc-aeca-21554f7503b2